bitfinex/quotes_BTCUSD_20250727
["timestamp","ask_amount","ask_price","bid_price","bid_amount"]
[1753639396384,0.58315698,119430.0,119420.0,0.57708648]
[1753639396563,0.56641162,119430.0,119420.0,0.57708648]
[1753639397242,0.5747843,119430.0,119420.0,0.57708648]
[1753639397413,0.56641162,119430.0,119420.0,0.57708648]
[1753639398555,0.56633162,119430.0,119420.0,0.57708648]
[1753639398958,0.57470423,119430.0,119420.0,0.57708648]
[1753639399524,0.57474423,119430.0,119420.0,0.57708648]
[1753639400340,0.55799908,119430.0,119420.0,0.57708648]
[1753639402849,0.56637155,119430.0,119420.0,0.57708648]
[1753639403283,0.43837155,119430.0,119420.0,0.57708648]
[1753639403523,0.56637155,119430.0,119420.0,0.57708648]
[1753639403752,0.55799908,119430.0,119420.0,0.57708648]
[1753639404895,0.47352178,119430.0,119420.0,0.57708648]
[1753639405343,0.47352178,119430.0,119420.0,0.61842905]
[1753639406043,0.47352178,119430.0,119420.0,0.57708648]
[1753639406461,0.47352178,119430.0,119420.0,0.25519508]
[1753639406671,0.47348178,119430.0,119420.0,0.25519508]
[1753639406888,0.34552178,119430.0,119420.0,0.57708648]
[1753639407301,0.47352178,119430.0,119420.0,0.57708648]
[1753639408672,0.48189439,119430.0,119420.0,0.57708648]
[1753639408881,0.47352178,119430.0,119420.0,0.57708648]
[1753639411980,0.00552178,119430.0,119420.0,0.57708648]
[1753639412197,0.13356178,119430.0,119420.0,0.57708648]
[1753639413078,0.13256178,119430.0,119420.0,0.57708648]
[1753639413290,0.13256178,119430.0,119420.0,0.57808648]
[1753639413935,0.13156178,119430.0,119420.0,0.57808648]
[1753639414363,0.13156178,119430.0,119420.0,0.57908648]
[1753639414829,0.13156178,119430.0,119420.0,0.70712648]
[1753639415482,0.00352178,119430.0,119420.0,0.79160378]
[1753639416469,0.00352178,119430.0,119420.0,0.70712648]
[1753639416928,0.00352178,119430.0,119420.0,0.38523508]
[1753639417164,0.00352178,119430.0,119420.0,0.70712648]
[1753639424662,0.00352178,119430.0,119420.0,0.72399424]
[1753639428596,0.00352178,119430.0,119420.0,0.72299424]
[1753639429164,0.00352178,119430.0,119420.0,0.72499424]
[1753639429367,0.00352178,119430.0,119420.0,0.91139786]
[1753639429570,0.00352178,119430.0,119420.0,0.91039786]
[1753639429785,0.00352178,119430.0,119420.0,0.91239786]
[1753639429998,0.00352178,119430.0,119420.0,0.82792056]
[1753639432903,0.00352178,119430.0,119420.0,1.2291327]
[1753639436481,0.00352178,119430.0,119420.0,1.2271327]
[1753639436943,0.00352178,119430.0,119420.0,1.2301327]
[1753639437142,0.00352178,119430.0,119420.0,1.2281327]
[1753639437403,0.00352178,119430.0,119420.0,1.2301327]
[1753639440414,0.00352178,119430.0,119420.0,0.50702916]
[1753639440638,0.00352178,119430.0,119420.0,1.2301327]
[1753639444240,0.00352178,119430.0,119420.0,1.2251327]
[1753639444468,0.00352178,119430.0,119420.0,1.2281327]
[1753639445240,2.00153374,119450.0,119440.0,0.19256445]
[1753639445440,2.00153374,119450.0,119440.0,0.68183622]
[1753639445441,2.00356374,119450.0,119440.0,0.68183622]
[1753639445652,2.00039374,119450.0,119440.0,0.68183622]
[1753639446229,2.00039374,119450.0,119440.0,0.70536461]
[1753639446442,2.00039374,119450.0,119440.0,0.70636461]
[1753639447380,2.00039374,119450.0,119440.0,0.72276461]
[1753639451961,2.00039374,119450.0,119440.0,0.72779461]
[1753639452613,2.00039374,119450.0,119440.0,0.72679461]
[1753639453061,2.00039374,119450.0,119440.0,0.72879461]
[1753639453511,2.00039374,119450.0,119440.0,0.72979461]
[1753639453743,2.00039374,119450.0,119440.0,0.36824284]
[1753639453981,2.00039374,119450.0,119440.0,0.72979461]
[1753639454991,1.99836374,119450.0,119440.0,0.74629461]
[1753639455208,1.99836374,119450.0,119440.0,0.83077191]
[1753639455416,1.99836374,119450.0,119440.0,0.74629461]
[1753639458755,1.99836374,119450.0,119440.0,0.74329461]
[1753639458986,1.99836374,119450.0,119440.0,0.74729461]
[1753639459480,1.99836374,119450.0,119440.0,0.74529461]
[1753639459822,2.00039374,119450.0,119440.0,0.73179461]
[1753639460817,2.00039374,119450.0,119440.0,0.36717284]
[1753639461044,2.01539374,119450.0,119440.0,0.19762284]
[1753639461251,2.04680374,119450.0,119440.0,0.68717461]
[1753639462421,2.03140374,119450.0,119440.0,0.68717461]
[1753639462858,2.03140374,119450.0,119440.0,0.64703619]
[1753639464139,2.01855374,119450.0,119440.0,0.64703619]
[1753639464754,2.01855374,119450.0,119440.0,0.32562284]
[1753639464929,2.03140374,119450.0,119440.0,0.64703619]
[1753639465331,2.03140374,119450.0,119440.0,0.32562284]
[1753639465554,2.03140374,119450.0,119440.0,0.64703619]
[1753639467087,2.13128104,119450.0,119440.0,0.17250648]
[1753639467487,2.97687137,119450.0,119440.0,0.00505839]
[1753639467925,2.97687137,119450.0,119440.0,0.17787881]
[1753639468146,2.96850002,119450.0,119440.0,0.17787888]
[1753639468353,2.64708667,119450.0,119440.0,0.19562326]
[1753639468573,2.48802353,119450.0,119440.0,0.19562326]
[1753639468805,2.67220079,119450.0,119440.0,0.18625114]
[1753639469011,2.49639502,119450.0,119440.0,0.18625114]
[1753639469228,2.50476665,119450.0,119440.0,0.18625121]
[1753639469452,2.48802353,119450.0,119440.0,0.20299552]
[1753639469658,2.61614346,119450.0,119440.0,0.21136757]
[1753639469882,2.61614346,119450.0,119440.0,0.21136722]
[1753639470505,2.60777218,119450.0,119440.0,0.2093668]
[1753639472188,2.47128104,119450.0,119440.0,0.2093668]
[1753639472449,2.43987104,119450.0,119440.0,0.68201015]
[1753639472672,1.99836374,119450.0,119440.0,1.0400735]
[1753639472886,1.99836374,119450.0,119440.0,0.71866015]
[1753639473536,1.99836374,119450.0,119440.0,1.0400735]
[1753639474017,1.99836374,119450.0,119440.0,0.71866015]
[1753639474422,1.99836374,119450.0,119440.0,0.72166015]
[1753639475052,1.99836374,119450.0,119440.0,0.72366015]
[1753639476256,1.99836374,119450.0,119440.0,1.0450735]
[1753639476492,1.99836374,119450.0,119440.0,0.72366015]
[1753639476724,1.99836374,119450.0,119440.0,1.05998905]
[1753639476932,1.99836374,119450.0,119440.0,0.7385757]
[1753639477357,1.99836374,119450.0,119440.0,1.0450735]
[1753639477818,1.60624753,119450.0,119440.0,1.1295508]
[1753639478839,1.60624753,119450.0,119440.0,1.0450735]
[1753639479223,1.60624753,119450.0,119440.0,0.72366015]
[1753639480094,1.60624753,119450.0,119440.0,1.0450735]
[1753639480334,1.60629597,119450.0,119440.0,1.0450735]
[1753639483885,1.60629597,119450.0,119440.0,1.04501511]
[1753639484979,1.60629597,119450.0,119440.0,1.21403643]
[1753639485237,1.60629597,119450.0,119440.0,1.14424992]
[1753639486111,1.60629597,119450.0,119440.0,1.26169894]
[1753639486567,1.22762932,119450.0,119440.0,1.27169894]
[1753639487895,1.22762932,119450.0,119440.0,1.28169894]
[1753639488122,1.22762932,119450.0,119440.0,1.28163222]
[1753639488334,1.22762932,119450.0,119440.0,1.36610952]
[1753639488990,1.22762932,119450.0,119440.0,1.24610952]
[1753639489453,1.22762932,119450.0,119440.0,1.24618458]
[1753639489661,1.22762932,119450.0,119440.0,1.16170728]
[1753639489874,1.22975932,119450.0,119440.0,0.71791593]
[1753639490092,1.22975932,119450.0,119440.0,0.84396593]
[1753639490909,1.22975932,119450.0,119440.0,0.86451593]
[1753639491661,1.22762932,119450.0,119440.0,0.86451593]
[1753639492502,1.22762932,119450.0,119440.0,0.54310258]
[1753639492707,1.22762932,119450.0,119440.0,0.86451593]
[1753639494112,1.22762932,119450.0,119440.0,1.18592928]
[1753639497364,1.22762932,119450.0,119440.0,1.40040658]
[1753639498596,1.22762932,119450.0,119440.0,0.62757988]
[1753639498826,1.22762932,119450.0,119440.0,1.38040658]
[1753639502007,0.68202034,119450.0,119440.0,1.43040658]
[1753639502926,0.23529907,119450.0,119440.0,1.59445758]
[1753639503132,1e-08,119450.0,119440.0,2.03722758]
[1753639503337,1e-08,119450.0,119440.0,2.03472758]
[1753639503735,0.0032,119470.0,119460.0,0.24008123]
[1753639503961,0.00324844,119470.0,119460.0,0.8292064]
[1753639504163,0.00324844,119470.0,119460.0,0.8323864]
[1753639504324,0.00324844,119470.0,119460.0,1.0119444]
[1753639505174,0.00324844,119470.0,119460.0,1.0159444]
[1753639506366,0.00324844,119470.0,119460.0,1.0699444]
[1753639508659,0.00324844,119470.0,119460.0,1.3872854]
[1753639509084,0.00324844,119470.0,119460.0,1.38737714]
[1753639511278,0.00324844,119470.0,119460.0,2.10230714]
[1753639512271,0.00324844,119470.0,119460.0,1.85090714]
[1753639512503,0.00324844,119470.0,119460.0,1.79683214]
[1753639512723,0.00324844,119470.0,119460.0,1.33423114]
[1753639512938,0.00324844,119470.0,119460.0,1.22018214]
[1753639513154,0.00324844,119470.0,119460.0,1.18349014]
[1753639514111,0.00324844,119470.0,119460.0,1.13026562]
[1753639516647,0.00324844,119470.0,119460.0,1.13276562]
[1753639518116,0.00324844,119470.0,119460.0,1.01681162]
[1753639518336,0.00324844,119470.0,119460.0,1.35839462]
[1753639519797,0.00324844,119470.0,119460.0,1.33983762]
[1753639520025,0.00324844,119470.0,119460.0,1.30973762]
[1753639520253,0.00324844,119470.0,119460.0,1.36000762]
[1753639520458,0.00324844,119470.0,119460.0,1.30973762]
[1753639521345,0.00324844,119470.0,119460.0,1.31911729]
[1753639522166,0.00324844,119470.0,119460.0,1.27039529]
[1753639522371,0.00324844,119470.0,119460.0,0.69539827]
[1753639522580,0.00324844,119470.0,119460.0,1.13068162]
[1753639522962,0.00324844,119470.0,119460.0,1.01681162]
[1753639523142,0.00324844,119470.0,119460.0,1.13068162]
[1753639524462,0.00324844,119470.0,119460.0,1.13058988]
[1753639524714,0.00324844,119470.0,119460.0,1.20292503]
[1753639525511,0.00324844,119470.0,119460.0,1.20303347]
[1753639526206,0.00324844,119470.0,119460.0,1.08916347]
[1753639526537,0.00324844,119470.0,119460.0,1.01682832]
[1753639527427,0.00528844,119470.0,119460.0,0.51419497]
[1753639527608,0.00528844,119470.0,119460.0,0.90723832]
[1753639527815,0.00528844,119470.0,119460.0,0.94567832]
[1753639528253,0.00528844,119470.0,119460.0,0.95073832]
[1753639530926,0.05220844,119470.0,119460.0,0.45770497]
[1753639531149,0.05220844,119470.0,119460.0,0.56833595]
[1753639531362,0.05220844,119470.0,119460.0,0.22577865]
[1753639531568,0.05220844,119470.0,119460.0,0.32880065]
[1753639532028,0.05220844,119470.0,119460.0,0.650214]
[1753639536913,0.05220844,119470.0,119460.0,0.32880065]
[1753639537121,0.05220844,119470.0,119460.0,0.650214]
[1753639537373,0.05220844,119470.0,119460.0,0.32880065]
[1753639537779,0.05220844,119470.0,119460.0,0.32869221]
[1753639538781,0.05220844,119470.0,119460.0,0.32881736]
[1753639540345,0.03935844,119470.0,119460.0,0.32881736]
[1753639542086,0.03628844,119470.0,119460.0,0.35225736]
[1753639542308,0.03628844,119470.0,119460.0,0.67367071]
[1753639544383,0.03628844,119470.0,119460.0,0.35225736]
[1753639544575,0.03628844,119470.0,119460.0,0.67367071]
[1753639545125,0.03628844,119470.0,119460.0,0.54551071]
[1753639545372,0.03628844,119470.0,119460.0,0.67367071]
[1753639548145,0.03628844,119470.0,119460.0,0.67359071]
[1753639548778,0.03628844,119470.0,119460.0,0.67655071]
[1753639549136,0.03628844,119470.0,119460.0,0.67865071]
[1753639549356,0.02068844,119470.0,119460.0,0.70386313]
[1753639552097,0.01864844,119470.0,119460.0,0.70386313]
[1753639553429,0.00324844,119470.0,119460.0,0.70386313]
[1753639554249,0.00324844,119470.0,119460.0,0.70373798]
[1753639555084,0.00324844,119470.0,119460.0,0.38232463]
[1753639555253,0.00324844,119470.0,119460.0,0.70388818]
[1753639557924,0.02454844,119470.0,119460.0,0.38247483]
[1753639558124,0.02656844,119470.0,119460.0,0.70388818]
[1753639558994,0.04316844,119470.0,119460.0,0.70388818]
[1753639559374,0.04316844,119470.0,119460.0,0.57580818]
[1753639559586,0.04316844,119470.0,119460.0,0.70380818]
[1753639559791,0.02656844,119470.0,119460.0,0.70380818]
[1753639559990,0.02454844,119470.0,119460.0,0.70380818]
[1753639560198,0.00324844,119470.0,119460.0,0.70380818]
[1753639562577,0.00324844,119470.0,119460.0,0.72320818]
[1753639563678,0.00324844,119470.0,119460.0,0.59520818]
[1753639563885,0.00324844,119470.0,119460.0,0.74412818]
[1753639564319,0.00324844,119470.0,119460.0,0.72312818]
[1753639564741,0.00324844,119470.0,119460.0,0.82860548]
[1753639565057,0.00324844,119470.0,119460.0,1.0605318]
[1753639565496,0.00324844,119470.0,119460.0,0.9305318]
[1753639565726,0.00324844,119470.0,119460.0,0.9560545]
[1753639566426,0.00324844,119470.0,119460.0,0.9520545]
[1753639566877,0.00324844,119470.0,119460.0,0.8251345]
[1753639567093,0.00324844,119470.0,119460.0,1.5781265]
[1753639567536,0.00324844,119470.0,119460.0,1.6291265]
[1753639567985,0.00324844,119470.0,119460.0,1.7126038]
[1753639568198,0.00324844,119470.0,119460.0,1.7146038]
[1753639569318,0.1502,119480.0,119470.0,0.25036512]
[1753639569536,0.1502,119480.0,119470.0,0.78606577]
[1753639569759,0.1502,119480.0,119470.0,0.81204597]
[1753639569974,0.1502,119480.0,119470.0,0.89652327]
[1753639570869,0.1502,119480.0,119470.0,0.90052327]
[1753639571532,0.1502,119480.0,119470.0,0.90452327]
[1753639573293,1e-08,119480.0,119470.0,1.37593662]
[1753639573720,1e-08,119480.0,119470.0,2.02939662]
[1753639573938,1e-08,119480.0,119470.0,1.91390962]
[1753639574147,1e-08,119480.0,119470.0,1.90990962]
[1753639574650,1e-08,119480.0,119470.0,1.90790962]
[1753639574996,1e-08,119480.0,119470.0,1.90890962]
[1753639575214,1e-08,119480.0,119470.0,1.60589162]
[1753639575433,1e-08,119480.0,119470.0,1.50447762]
[1753639575659,1e-08,119480.0,119470.0,1.18306427]
[1753639575843,1e-08,119480.0,119470.0,1.49073662]
[1753639576047,1e-08,119480.0,119470.0,1.37093662]
[1753639576259,1e-08,119480.0,119470.0,1.64267062]
[1753639576463,1e-08,119480.0,119470.0,1.51361862]
[1753639576670,1e-08,119480.0,119470.0,1.47315862]
[1753639576868,1e-08,119480.0,119470.0,1.04952327]
[1753639577082,1e-08,119480.0,119470.0,1.21890627]
[1753639577485,1e-08,119480.0,119470.0,1.19194527]
[1753639577956,1e-08,119480.0,119470.0,1.51335862]
[1753639579735,1e-08,119480.0,119470.0,1.42888132]
[1753639579944,1e-08,119480.0,119470.0,1.10746797]
[1753639581467,1e-08,119480.0,119470.0,0.78605462]
[1753639581701,1e-08,119480.0,119470.0,1.00746797]
[1753639581910,1e-08,119480.0,119470.0,0.79605462]
[1753639582129,1e-08,119480.0,119470.0,1.11746797]
[1753639583064,1e-08,119480.0,119470.0,1.19281821]
[1753639583275,1e-08,119480.0,119470.0,1.85423156]
[1753639584584,1e-08,119480.0,119470.0,1.87936556]
[1753639584816,1e-08,119480.0,119470.0,1.16118862]
[1753639585039,1e-08,119480.0,119470.0,1.48260197]
[1753639585701,1e-08,119480.0,119470.0,1.37260197]
[1753639585911,0.00213001,119480.0,119470.0,0.81259262]
[1753639586192,0.00213001,119480.0,119470.0,1.13400597]
[1753639586882,1e-08,119480.0,119470.0,1.13400597]
[1753639587105,1e-08,119480.0,119470.0,1.1854854]
[1753639587954,0.05802001,119500.0,119490.0,0.51389723]
[1753639588187,0.03895001,119500.0,119490.0,0.72818453]
[1753639588421,0.02295001,119500.0,119490.0,0.72833473]
[1753639588647,0.02295001,119500.0,119490.0,0.75408473]
[1753639589090,0.02295001,119500.0,119490.0,0.75608473]
[1753639589315,0.02295001,119500.0,119490.0,0.78748421]
[1753639589819,0.02082001,119500.0,119490.0,0.88941053]
[1753639590040,0.02082001,119500.0,119490.0,0.90561053]
[1753639590767,0.02076001,119500.0,119490.0,0.90561053]
[1753639591241,0.02076001,119500.0,119490.0,0.82113323]
[1753639591451,0.02076001,119500.0,119490.0,0.87113323]
[1753639592329,0.02076001,119500.0,119490.0,0.86813323]
[1753639592536,0.02076001,119500.0,119490.0,0.98813323]
[1753639592751,0.02076001,119500.0,119490.0,0.99213323]
[1753639592968,0.02076001,119500.0,119490.0,1.00601537]
[1753639593642,0.02076001,119500.0,119490.0,1.00401537]
[1753639593854,0.02076001,119500.0,119490.0,1.00801537]
[1753639594278,0.02076001,119500.0,119490.0,0.99181537]
[1753639594507,0.02076001,119500.0,119490.0,0.65651988]
[1753639594762,0.02076001,119500.0,119490.0,0.97793323]
[1753639594967,0.02076001,119500.0,119490.0,0.99313323]
[1753639597226,0.02076001,119500.0,119490.0,1.13976323]
[1753639597892,0.02076001,119500.0,119490.0,0.81834988]
[1753639598098,0.02076001,119500.0,119490.0,1.13976323]
[1753639599906,0.02076001,119500.0,119490.0,1.22424053]
[1753639600112,0.02076001,119500.0,119490.0,1.13976323]
[1753639600492,0.02076001,119500.0,119490.0,0.99313323]
[1753639600709,0.02076001,119500.0,119490.0,1.81238023]
[1753639601192,0.02076001,119500.0,119490.0,1.58242223]
[1753639601341,0.02076001,119500.0,119490.0,1.64655978]
[1753639602605,0.02076001,119500.0,119490.0,1.63135978]
[1753639603038,0.02076001,119500.0,119490.0,1.64775978]
[1753639603470,0.02076001,119500.0,119490.0,1.48879723]
[1753639603918,0.02076001,119500.0,119490.0,1.39176923]
[1753639604405,0.02076001,119500.0,119490.0,1.29445023]
[1753639605887,0.02076001,119500.0,119490.0,1.20510123]
[1753639606127,0.02076001,119500.0,119490.0,1.00306323]
[1753639606354,0.02289001,119500.0,119490.0,0.43024138]
[1753639606560,0.06980001,119500.0,119490.0,0.67481743]
[1753639606769,0.06980001,119500.0,119490.0,0.54717743]
[1753639606972,0.06980001,119500.0,119490.0,0.67481743]
[1753639608190,0.05695001,119500.0,119490.0,0.67481743]
[1753639608425,0.05389001,119500.0,119490.0,0.69755743]
[1753639608636,0.05389001,119500.0,119490.0,0.37614408]
[1753639608859,0.05389001,119500.0,119490.0,0.69755743]
[1753639609066,0.03829001,119500.0,119490.0,0.69755743]
[1753639609411,0.02289001,119500.0,119490.0,0.70257743]
[1753639609983,0.02289001,119500.0,119490.0,0.72817706]
[1753639610672,0.02289001,119500.0,119490.0,0.96010338]
[1753639610673,0.02076001,119500.0,119490.0,0.96010338]
[1753639610895,0.02076001,119500.0,119490.0,0.93038068]
[1753639611122,0.02076001,119500.0,119490.0,0.80274068]
[1753639611380,0.02076001,119500.0,119490.0,0.70246338]
[1753639611604,0.02076001,119500.0,119490.0,0.83010338]
[1753639611828,0.02076001,119500.0,119490.0,0.84590338]
[1753639612293,0.02076001,119500.0,119490.0,0.96590338]
[1753639613207,0.02076001,119500.0,119490.0,0.84590338]
[1753639613462,0.00036001,119500.0,119490.0,0.84590338]
[1753639613942,0.01849001,119500.0,119490.0,0.83010338]
[1753639614598,0.00249001,119500.0,119490.0,0.83010338]
[1753639615467,0.00036001,119500.0,119490.0,0.83010338]
[1753639616025,0.00048166,119500.0,119490.0,0.83010338]
[1753639616236,0.01886166,119500.0,119490.0,0.78489436]
[1753639616659,0.01886166,119500.0,119490.0,0.80964436]
[1753639619624,0.03486166,119500.0,119490.0,0.80964436]
[1753639620725,0.01886166,119500.0,119490.0,0.80964436]
[1753639622330,0.01886166,119500.0,119490.0,0.81485436]
[1753639622587,0.00048166,119500.0,119490.0,0.81485436]
[1753639622821,0.00048166,119500.0,119490.0,0.83085436]
[1753639623360,0.01816166,119500.0,119490.0,0.81485436]
[1753639623629,0.00256166,119500.0,119490.0,0.81485436]
[1753639623924,0.00048166,119500.0,119490.0,0.81485436]
[1753639627651,0.00048166,119500.0,119490.0,0.49344101]
[1753639627892,0.00048166,119500.0,119490.0,0.81485436]
[1753639630000,0.00048166,119500.0,119490.0,0.49344101]
[1753639630261,0.00048166,119500.0,119490.0,0.81485436]
[1753639630840,0.00256166,119500.0,119490.0,0.81485436]
[1753639631069,0.01816166,119500.0,119490.0,0.81485436]
[1753639631283,0.01816166,119500.0,119490.0,0.27611371]
[1753639631512,0.07461493,119500.0,119490.0,0.35387371]
[1753639631763,0.08298299,119500.0,119490.0,0.35387371]
[1753639631972,0.24197943,119500.0,119490.0,0.20063436]
[1753639632188,0.25034763,119500.0,119490.0,0.32827436]
[1753639632417,0.26280291,119500.0,119490.0,0.32827436]
[1753639632644,0.56748056,119500.0,119490.0,0.17552822]
[1753639632904,0.6435898,119500.0,119490.0,0.0041502]
[1753639633136,0.6435898,119500.0,119490.0,0.0001502]
[1753639633354,0.32217645,119500.0,119490.0,0.0021502]
[1753639633576,0.6435898,119500.0,119490.0,0.0031502]
[1753639634031,0.6435898,119500.0,119490.0,0.17052822]
[1753639634280,0.6435898,119500.0,119490.0,0.0031502]
[1753639634715,0.6352216,119500.0,119490.0,0.0031502]
[1753639634944,0.7628616,119500.0,119490.0,0.0031502]
[1753639636567,0.7628616,119500.0,119490.0,0.17052822]
[1753639637005,0.64358966,119500.0,119490.0,0.17889712]
[1753639637227,0.77122966,119500.0,119490.0,0.17789712]
[1753639637439,0.77122966,119500.0,119490.0,0.16952822]
[1753639637661,0.77122966,119500.0,119490.0,0.17789712]
[1753639637909,0.44981631,119500.0,119490.0,0.16752822]
[1753639638336,0.44981631,119500.0,119490.0,0.16852822]
[1753639639446,0.44981631,119500.0,119490.0,0.0011502]
[1753639639687,0.44981631,119500.0,119490.0,0.16852822]
[1753639639904,0.44144825,119500.0,119490.0,0.16852822]
[1753639640826,0.7628616,119500.0,119490.0,0.16852822]
[1753639641458,0.44144825,119500.0,119490.0,0.16852822]
[1753639641660,0.7628616,119500.0,119490.0,0.16852822]
[1753639642617,0.77122966,119500.0,119490.0,0.17689712]
[1753639642753,0.77122966,119500.0,119490.0,0.18526595]
[1753639643602,0.44981631,119500.0,119490.0,0.19363464]
[1753639643826,0.16120166,119500.0,119490.0,0.56174502]
[1753639644048,0.186205,119500.0,119490.0,0.22359464]
[1753639644269,0.186205,119500.0,119490.0,0.21838464]
[1753639644496,0.36193721,119500.0,119490.0,0.22675319]
[1753639644722,0.19457306,119500.0,119490.0,0.2351216]
[1753639644943,0.3703052,119500.0,119490.0,0.2351216]
[1753639645851,0.36193805,119500.0,119490.0,0.22675319]
[1753639646074,0.35357006,119500.0,119490.0,0.22675319]
[1753639646295,0.36504288,119500.0,119490.0,0.22675319]
[1753639646745,0.44413212,119500.0,119490.0,0.0011502]
[1753639646997,0.77839547,119500.0,119490.0,0.0011502]
[1753639647642,0.45698212,119500.0,119490.0,0.0011502]
[1753639648084,0.45698212,119500.0,119490.0,0.18526581]
[1753639648221,0.45698212,119500.0,119490.0,0.1936345]
[1753639648598,0.44115212,119500.0,119490.0,0.2168045]
[1753639648814,0.44115212,119500.0,119490.0,0.22517305]
[1753639649025,0.31351212,119500.0,119490.0,0.22517305]
[1753639649461,0.44115212,119500.0,119490.0,0.22517305]
[1753639650086,0.44115212,119500.0,119490.0,0.2168045]
[1753639650519,0.42441579,119500.0,119490.0,0.20006705]
[1753639651445,0.42441579,119500.0,119490.0,0.20843581]
[1753639651649,0.42441579,119500.0,119490.0,0.21680443]
[1753639653464,0.42441579,119500.0,119490.0,0.22517298]
[1753639654430,0.43278385,119500.0,119490.0,0.22517298]
[1753639655283,0.44951983,119500.0,119490.0,0.23354146]
[1753639655489,0.45788803,119500.0,119490.0,0.23354146]
[1753639655897,0.45788803,119500.0,119490.0,0.22517298]
[1753639656514,0.45788803,119500.0,119490.0,0.23354146]
[1753639657606,0.44952018,119500.0,119490.0,0.21680443]
[1753639657824,0.44115212,119500.0,119490.0,0.21680443]
[1753639658249,0.44115212,119500.0,119490.0,0.20843581]
[1753639658508,0.44115212,119500.0,119490.0,0.20006705]
[1753639658509,0.42441579,119500.0,119490.0,0.20006705]
[1753639658731,0.29677579,119500.0,119490.0,0.20006705]
[1753639658948,0.42441579,119500.0,119490.0,0.20006705]
[1753639660035,0.42441579,119500.0,119490.0,0.20843574]
[1753639660254,0.43278385,119500.0,119490.0,0.21680429]
[1753639660486,0.43278385,119500.0,119490.0,0.20843574]
[1753639661392,0.43278385,119500.0,119490.0,0.20006705]
[1753639661597,0.42441579,119500.0,119490.0,0.20006705]
[1753639662644,0.42441579,119500.0,119490.0,0.20843574]
[1753639662864,0.43278385,119500.0,119490.0,0.21680422]
[1753639663078,0.4258517,119500.0,119490.0,0.22517263]
[1753639663303,0.43421983,119500.0,119490.0,0.23024263]
[1753639663531,0.13084769,119500.0,119490.0,0.23024263]
[1753639663752,0.13921533,119500.0,119490.0,0.23024263]
[1753639663971,0.26685533,119500.0,119490.0,0.23024263]
[1753639665213,0.13648937,119500.0,119490.0,0.24654263]
[1753639665471,0.15322528,119500.0,119490.0,0.24654263]
[1753639665669,0.14485722,119500.0,119490.0,0.23024263]
[1753639665877,0.15322521,119500.0,119490.0,0.23024263]
[1753639666114,0.16159334,119500.0,119490.0,0.23024263]
[1753639666329,0.36311735,119500.0,119490.0,0.21887422]
[1753639666572,0.36311735,119500.0,119490.0,0.21680436]
[1753639666795,0.36311735,119500.0,119490.0,0.22517291]
[1753639667416,0.19152884,119500.0,119490.0,0.23354132]
[1753639667732,0.23125285,119500.0,119490.0,0.23861132]
[1753639667952,0.35885285,119500.0,119490.0,0.23861132]
[1753639668183,0.35048514,119500.0,119490.0,0.21887436]
[1753639670215,0.35885334,119500.0,119490.0,0.22724291]
[1753639670385,0.35885334,119500.0,119490.0,0.23861139]
[1753639670609,0.16702113,119500.0,119490.0,0.23861097]
[1753639670774,0.15649265,119500.0,119490.0,0.25461097]
[1753639670972,0.16486057,119500.0,119490.0,0.25461097]
[1753639671181,0.17322863,119500.0,119490.0,0.25461097]
[1753639672018,0.34896084,119500.0,119490.0,0.25461097]
[1753639672457,0.16155313,119500.0,119490.0,0.25461097]
[1753639673480,0.15318507,119500.0,119490.0,0.25461097]
[1753639673985,0.03395313,119500.0,119490.0,0.25461097]
[1753639674189,0.16155313,119500.0,119490.0,0.25461097]
[1753639675043,0.32891714,119500.0,119490.0,0.23787408]
[1753639675257,0.3205495,119500.0,119490.0,0.23787408]
[1753639676932,0.3205495,119500.0,119490.0,0.22187408]
[1753639677279,0.3205495,119500.0,119490.0,0.21350553]
[1753639677712,0.3205495,119500.0,119490.0,0.22187408]
[1753639678330,0.3205495,119500.0,119490.0,0.23024256]
[1753639678799,0.16517102,119500.0,119490.0,0.25431097]
[1753639680795,0.00048166,119500.0,119490.0,0.81868367]
[1753639681012,0.00048166,119500.0,119490.0,0.65837474]
[1753639681488,0.00048166,119500.0,119490.0,0.25994249]
[1753639681698,0.12808166,119500.0,119490.0,0.25994249]
[1753639681922,0.00048166,119500.0,119490.0,0.25994249]
[1753639682129,0.12808166,119500.0,119490.0,0.58135584]
[1753639683056,0.12808166,119500.0,119490.0,0.58335584]
[1753639683472,0.12808166,119500.0,119490.0,0.58135584]
[1753639683935,0.12808166,119500.0,119490.0,0.58435584]
[1753639685096,0.12808166,119500.0,119490.0,0.25457408]
[1753639685330,0.13644923,119500.0,119490.0,0.24794249]
[1753639686047,0.153185,119500.0,119490.0,0.24794249]
[1753639686282,0.13859923,119500.0,119490.0,0.23124284]
[1753639686515,0.14696694,119500.0,119490.0,0.24774284]
[1753639686735,0.14696694,119500.0,119490.0,0.25089284]
[1753639687775,0.15533472,119500.0,119490.0,0.25089284]
[1753639688232,0.16370264,119500.0,119490.0,0.25089284]
[1753639688929,0.16370264,119500.0,119490.0,0.23439284]
[1753639689161,0.33106714,119500.0,119490.0,0.0283202]
[1753639689391,0.32953165,119500.0,119490.0,0.19569822]
[1753639689614,0.32953165,119500.0,119490.0,0.20406698]
[1753639690061,0.32953165,119500.0,119490.0,0.22310429]
[1753639690062,0.31433165,119500.0,119490.0,0.22310429]
[1753639690306,0.31433165,119500.0,119490.0,0.22510429]
[1753639690532,0.31433165,119500.0,119490.0,0.21673567]
[1753639691232,0.31433165,119500.0,119490.0,0.19684822]
[1753639691510,0.75237632,119500.0,119490.0,0.0041502]
[1753639692886,0.43096297,119500.0,119490.0,0.0001502]
[1753639693110,0.75237632,119500.0,119490.0,0.0001502]
[1753639693569,0.75237632,119500.0,119490.0,0.0011502]
[1753639694237,0.39857297,119500.0,119490.0,0.0250002]
[1753639694676,0.39857297,119500.0,119490.0,0.0260002]
[1753639694898,0.39857297,119500.0,119490.0,0.0250002]
[1753639701938,0.39857297,119500.0,119490.0,0.0011502]
[1753639702165,0.71998632,119500.0,119490.0,0.0011502]
[1753639702410,0.75088632,119500.0,119490.0,0.0011502]
[1753639703586,0.42947297,119500.0,119490.0,0.0011502]
[1753639704088,1.09088632,119500.0,119490.0,0.0011502]
[1753639705279,1.09088632,119500.0,119490.0,0.0001502]
[1753639712621,1.09872598,119500.0,119490.0,0.0001502]
[1753639716054,1.08587598,119500.0,119490.0,0.0001502]
[1753639716306,1.08282598,119500.0,119490.0,0.0248502]
[1753639717239,1.08282598,119500.0,119490.0,0.0001502]
[1753639718185,1.09870598,119500.0,119490.0,0.0001502]
[1753639718409,1.09870785,119500.0,119490.0,0.0001502]
[1753639720366,0.97110912,119500.0,119490.0,0.0001502]
[1753639720580,0.64969577,119500.0,119490.0,0.0001502]
[1753639720796,1.08585912,119500.0,119490.0,0.0001502]
[1753639722810,1.08282912,119500.0,119490.0,0.0248502]
[1753639723946,0.94022912,119500.0,119490.0,0.0248502]
[1753639724169,1.06782912,119500.0,119490.0,0.0248502]
[1753639727033,0.94022912,119500.0,119490.0,0.0248502]
[1753639727475,1.06782912,119500.0,119490.0,0.0248502]
[1753639727735,0.74641577,119500.0,119490.0,0.0248502]
[1753639727963,1.06782912,119500.0,119490.0,0.0248502]